[Event "Titled Tuesday Blitz November 01 Early 2022"]
[White "Terzi, Alexei"]
[Black "Goltseva, Ekaterina"]
[WhiteFideId "13505076"]
[BlackFideId "24173770"]
[WhiteElo "2172"]
[BlackElo "2200"]
[Result "1/2-1/2"]
[Round "10"]
[TimeControl "180+1"]
[Date "2022.11.02"]
[WhiteClock "0:00:14"]
[BlackClock "0:00:05"]

1. e4 {[%clk 0:03:00]}  e5 {[%clk 0:01:52]} 2. Nf3 {[%clk 0:03:00]}  Nf6 {[%clk 0:01:52]} 3. Nxe5 {[%clk 0:02:59]}  Nxe4 {[%clk 0:01:52]} 4. Qe2 {[%clk 0:02:59]}  Qe7 {[%clk 0:01:53]} 5. Qxe4 {[%clk 0:02:58]}  d6 {[%clk 0:01:54]} 6. d4 {[%clk 0:02:58]}  dxe5 {[%clk 0:01:53]} 7. Qxe5 {[%clk 0:02:58]}  Qxe5+ {[%clk 0:01:53]} 8. dxe5 {[%clk 0:02:59]}  Bf5 {[%clk 0:01:53]} 9. Bd3 {[%clk 0:02:57]}  Bxd3 {[%clk 0:01:50]} 10. cxd3 {[%clk 0:02:58]}  Nc6 {[%clk 0:01:50]} 11. f4 {[%clk 0:02:40]}  Nb4 {[%clk 0:01:48]} 12. Na3 {[%clk 0:02:36]}  Nxd3+ {[%clk 0:01:47]} 13. Ke2 {[%clk 0:02:36]}  Nxc1+ {[%clk 0:01:44]} 14. Raxc1 {[%clk 0:02:37]}  Bxa3 {[%clk 0:01:44]} 15. bxa3 {[%clk 0:02:37]}  O-O-O {[%clk 0:01:44]} 16. Rc3 {[%clk 0:02:25]}  c6 {[%clk 0:01:44]} 17. Ke3 {[%clk 0:02:16]}  g6 {[%clk 0:01:43]} 18. Rf1 {[%clk 0:02:02]}  Rd5 {[%clk 0:01:41]} 19. Rf2 {[%clk 0:01:54]}  h5 {[%clk 0:01:37]} 20. g3 {[%clk 0:01:53]}  Re8 {[%clk 0:01:33]} 21. Ke4 {[%clk 0:01:51]}  f6 {[%clk 0:01:30]} 22. h4 {[%clk 0:01:36]}  fxe5 {[%clk 0:01:28]} 23. f5 {[%clk 0:01:36]}  Rd4+ {[%clk 0:01:13]} 24. Ke3 {[%clk 0:01:36]}  Rg4 {[%clk 0:01:12]} 25. Ke2 {[%clk 0:01:29]}  Rf8 {[%clk 0:00:57]} 26. fxg6 {[%clk 0:01:11]}  Rxf2+ {[%clk 0:00:56]} 27. Kxf2 {[%clk 0:01:12]}  Rxg6 {[%clk 0:00:56]} 28. Rf3 {[%clk 0:01:12]}  e4 {[%clk 0:00:43]} 29. Rf5 {[%clk 0:01:12]}  e3+ {[%clk 0:00:43]} 30. Kf3 {[%clk 0:01:06]}  e2 {[%clk 0:00:39]} 31. Re5 {[%clk 0:00:58]}  Kc7 {[%clk 0:00:32]} 32. Rxe2 {[%clk 0:00:53]}  Kd6 {[%clk 0:00:29]} 33. Re8 {[%clk 0:00:53]}  Rf6+ {[%clk 0:00:28]} 34. Kg2 {[%clk 0:00:48]}  Rf5 {[%clk 0:00:27]} 35. Re3 {[%clk 0:00:39]}  Rc5 {[%clk 0:00:24]} 36. Kf3 {[%clk 0:00:30]}  Rf5+ {[%clk 0:00:23]} 37. Kg2 {[%clk 0:00:27]}  c5 {[%clk 0:00:23]} 38. Kh3 {[%clk 0:00:27]}  c4 {[%clk 0:00:22]} 39. g4 {[%clk 0:00:27]}  hxg4+ {[%clk 0:00:21]} 40. Kxg4 {[%clk 0:00:28]}  Rf1 {[%clk 0:00:22]} 41. h5 {[%clk 0:00:28]}  Rg1+ {[%clk 0:00:22]} 42. Kf5 {[%clk 0:00:28]}  Kd5 {[%clk 0:00:19]} 43. h6 {[%clk 0:00:23]}  Kd4 {[%clk 0:00:19]} 44. Re7 {[%clk 0:00:21]}  c3 {[%clk 0:00:14]} 45. Rd7+ {[%clk 0:00:19]}  Ke3 {[%clk 0:00:13]} 46. Rc7 {[%clk 0:00:19]}  Kd2 {[%clk 0:00:11]} 47. Rd7+ {[%clk 0:00:19]}  Kc1 {[%clk 0:00:09]} 48. Rxb7 {[%clk 0:00:18]}  c2 {[%clk 0:00:06]} 49. Rxa7 {[%clk 0:00:18]}  Kb1 {[%clk 0:00:06]} 50. Rc7 {[%clk 0:00:18]}  Rh1 {[%clk 0:00:04]} 51. Kg6 {[%clk 0:00:17]}  Rg1+ {[%clk 0:00:05]} 52. Kf7 {[%clk 0:00:16]}  Rf1+ {[%clk 0:00:05]} 53. Kg8 {[%clk 0:00:16]}  Rg1+ {[%clk 0:00:05]} 54. Kf7 {[%clk 0:00:15]}  Rf1+ {[%clk 0:00:05]} 55. Kg7 {[%clk 0:00:15]}  Rg1+ {[%clk 0:00:05]} 56. Kf7 {[%clk 0:00:14]} 1/2-1/2


[Site "https://www.chess.com"]

[Event "Titled Tuesday Blitz November 01 Early 2022"]
[White "Timofeev, Artyom"]
[Black "Aizpurua, Patrick Emilio"]
[WhiteFideId "4140419"]
[BlackFideId "6600522"]
[WhiteElo "2579"]
[BlackElo "2378"]
[Result "1-0"]
[Round "10"]
[TimeControl "180+1"]
[Date "2022.11.02"]
[WhiteClock "0:01:19"]
[BlackClock "0:00:02"]

1. d4 {[%clk 0:03:00]}  e6 {[%clk 0:02:59]} 2. Bf4 {[%clk 0:02:56]}  c5 {[%clk 0:02:55]} 3. e3 {[%clk 0:02:55]}  Nc6 {[%clk 0:02:55]} 4. Nc3 {[%clk 0:02:53]}  Nf6 {[%clk 0:02:47]} 5. Nf3 {[%clk 0:02:51]}  cxd4 {[%clk 0:02:43]} 6. exd4 {[%clk 0:02:50]}  d5 {[%clk 0:02:43]} 7. Nb5 {[%clk 0:02:49]}  Bb4+ {[%clk 0:02:41]} 8. c3 {[%clk 0:02:49]}  Ba5 {[%clk 0:02:37]} 9. Nd6+ {[%clk 0:02:48]}  Ke7 {[%clk 0:02:36]} 10. Nxc8+ {[%clk 0:02:43]}  Rxc8 {[%clk 0:02:35]} 11. Bd3 {[%clk 0:02:43]}  h6 {[%clk 0:02:34]} 12. O-O {[%clk 0:02:42]}  Bc7 {[%clk 0:02:33]} 13. Bd2 {[%clk 0:02:41]}  Ne4 {[%clk 0:02:29]} 14. Re1 {[%clk 0:02:40]}  f5 {[%clk 0:02:12]} 15. c4 {[%clk 0:02:40]}  Kf7 {[%clk 0:02:02]} 16. cxd5 {[%clk 0:02:37]}  exd5 {[%clk 0:02:01]} 17. Qb3 {[%clk 0:02:33]}  Re8 {[%clk 0:01:40]} 18. Bc3 {[%clk 0:02:20]}  Bb6 {[%clk 0:01:35]} 19. a4 {[%clk 0:02:11]}  Kg8 {[%clk 0:01:32]} 20. g3 {[%clk 0:02:04]}  Kh7 {[%clk 0:01:17]} 21. Kg2 {[%clk 0:02:04]}  Qd7 {[%clk 0:01:02]} 22. a5 {[%clk 0:02:00]}  Bd8 {[%clk 0:00:58]} 23. Ne5 {[%clk 0:01:54]}  Nxe5 {[%clk 0:00:48]} 24. dxe5 {[%clk 0:01:54]}  a6 {[%clk 0:00:36]} 25. f3 {[%clk 0:01:46]}  Nc5 {[%clk 0:00:33]} 26. Qc2 {[%clk 0:01:46]}  Nxd3 {[%clk 0:00:31]} 27. Qxd3 {[%clk 0:01:46]}  Qe6 {[%clk 0:00:19]} 28. Rad1 {[%clk 0:01:45]}  Rc5 {[%clk 0:00:19]} 29. Re2 {[%clk 0:01:33]}  Bxa5 {[%clk 0:00:19]} 30. b4 {[%clk 0:01:33]}  Rxc3 {[%clk 0:00:16]} 31. Qxc3 {[%clk 0:01:33]}  Bb6 {[%clk 0:00:15]} 32. Qd3 {[%clk 0:01:31]}  Rd8 {[%clk 0:00:15]} 33. f4 {[%clk 0:01:28]}  d4 {[%clk 0:00:12]} 34. h4 {[%clk 0:01:27]}  g6 {[%clk 0:00:11]} 35. h5 {[%clk 0:01:27]}  gxh5 {[%clk 0:00:10]} 36. Qf3 {[%clk 0:01:25]}  Qc4 {[%clk 0:00:06]} 37. Qxh5 {[%clk 0:01:20]}  d3 {[%clk 0:00:02]} 38. Qxf5+ {[%clk 0:01:19]} 1-0


[Site "https://www.chess.com"]

[Event "Titled Tuesday Blitz November 01 Early 2022"]
[White "Tomaszewski, Kacper"]
[Black "Toshali, V"]
[WhiteFideId "1127373"]
[BlackFideId "5072611"]
[WhiteElo "2211"]
[BlackElo "1973"]
[Result "1-0"]
[Round "10"]
[TimeControl "180+1"]
[Date "2022.11.02"]
[WhiteClock "0:02:39"]
[BlackClock "0:02:28"]

1. e4 {[%clk 0:03:00]}  e5 {[%clk 0:02:57]} 2. Nf3 {[%clk 0:03:00]}  Nc6 {[%clk 0:02:56]} 3. Nc3 {[%clk 0:02:59]}  Nf6 {[%clk 0:02:52]} 4. h3 {[%clk 0:02:59]}  Bc5 {[%clk 0:02:50]} 5. Nxe5 {[%clk 0:02:58]}  Nxe5 {[%clk 0:02:49]} 6. d4 {[%clk 0:02:58]}  Bxd4 {[%clk 0:02:49]} 7. Qxd4 {[%clk 0:02:57]}  d6 {[%clk 0:02:49]} 8. Bg5 {[%clk 0:02:53]}  h6 {[%clk 0:02:48]} 9. Bh4 {[%clk 0:02:49]}  g5 {[%clk 0:02:40]} 10. Bg3 {[%clk 0:02:48]}  Qe7 {[%clk 0:02:40]} 11. O-O-O {[%clk 0:02:45]}  Nc6 {[%clk 0:02:33]} 12. Bb5 {[%clk 0:02:41]}  Bd7 {[%clk 0:02:30]} 13. Bxc6 {[%clk 0:02:39]}  bxc6 {[%clk 0:02:28]} 14. e5 {[%clk 0:02:39]} 1-0


[Site "https://www.chess.com"]

[Event "Titled Tuesday Blitz November 01 Early 2022"]
[White "Vasques, Antonio Pedro Freixial"]
[Black "Shapiro, Daniel"]
[WhiteFideId "1908332"]
[BlackFideId "2001780"]
[WhiteElo "2243"]
[BlackElo "2256"]
[Result "0-1"]
[Round "10"]
[TimeControl "180+1"]
[Date "2022.11.02"]
[WhiteClock "0:00:25"]
[BlackClock "0:00:10"]

1. e4 {[%clk 0:03:00]}  e5 {[%clk 0:02:59]} 2. Nf3 {[%clk 0:03:00]}  Nc6 {[%clk 0:02:56]} 3. Bc4 {[%clk 0:02:58]}  Be7 {[%clk 0:02:56]} 4. O-O {[%clk 0:02:53]}  Nf6 {[%clk 0:02:55]} 5. Re1 {[%clk 0:02:52]}  d6 {[%clk 0:02:53]} 6. h3 {[%clk 0:02:50]}  h6 {[%clk 0:02:52]} 7. c3 {[%clk 0:02:49]}  Be6 {[%clk 0:02:49]} 8. Bf1 {[%clk 0:02:48]}  d5 {[%clk 0:02:42]} 9. exd5 {[%clk 0:02:41]}  Qxd5 {[%clk 0:02:42]} 10. Na3 {[%clk 0:02:12]}  e4 {[%clk 0:02:26]} 11. Bc4 {[%clk 0:01:44]}  Qd7 {[%clk 0:02:24]} 12. Bxe6 {[%clk 0:01:28]}  Qxe6 {[%clk 0:02:09]} 13. d4 {[%clk 0:01:23]}  Qf5 {[%clk 0:01:28]} 14. Nh2 {[%clk 0:01:16]}  O-O {[%clk 0:01:21]} 15. Nf1 {[%clk 0:01:08]}  a6 {[%clk 0:01:18]} 16. Ng3 {[%clk 0:01:07]}  Qg6 {[%clk 0:01:15]} 17. Qc2 {[%clk 0:01:05]}  Bxa3 {[%clk 0:01:14]} 18. bxa3 {[%clk 0:01:04]}  Rfe8 {[%clk 0:01:15]} 19. Bf4 {[%clk 0:01:01]}  Re7 {[%clk 0:01:10]} 20. Nf1 {[%clk 0:00:48]}  Nd5 {[%clk 0:01:02]} 21. Bh2 {[%clk 0:00:46]}  f5 {[%clk 0:01:01]} 22. c4 {[%clk 0:00:44]}  Nxd4 {[%clk 0:00:56]} 23. Qd1 {[%clk 0:00:39]}  Nf3+ {[%clk 0:00:56]} 24. Kh1 {[%clk 0:00:39]}  Nxe1 {[%clk 0:00:49]} 25. Qxd5+ {[%clk 0:00:38]}  Kh7 {[%clk 0:00:43]} 26. Rxe1 {[%clk 0:00:37]}  c6 {[%clk 0:00:32]} 27. Qc5 {[%clk 0:00:37]}  Rd7 {[%clk 0:00:30]} 28. Ne3 {[%clk 0:00:36]}  Rd2 {[%clk 0:00:21]} 29. Kg1 {[%clk 0:00:31]}  Rxa2 {[%clk 0:00:13]} 30. Nxf5 {[%clk 0:00:29]}  Rd8 {[%clk 0:00:12]} 31. Bg3 {[%clk 0:00:26]}  Rdd2 {[%clk 0:00:11]} 32. Rxe4 {[%clk 0:00:25]}  Rd1+ {[%clk 0:00:10]} 33. Kh2 {[%clk 0:00:25]}  Raa1 {[%clk 0:00:10]} 0-1


[Site "https://www.chess.com"]

[Event "Titled Tuesday Blitz November 01 Early 2022"]
[White "Villamayor, Buenaventura"]
[Black "Koridze, Lile"]
[WhiteFideId "5200393"]
[BlackFideId "13612514"]
[WhiteElo "2301"]
[BlackElo "2050"]
[Result "1-0"]
[Round "10"]
[TimeControl "180+1"]
[Date "2022.11.02"]
[WhiteClock "0:01:03"]
[BlackClock "0:00:30"]

1. e4 {[%clk 0:03:00]}  c5 {[%clk 0:02:59]} 2. c3 {[%clk 0:03:00]}  Nf6 {[%clk 0:02:58]} 3. e5 {[%clk 0:03:01]}  Nd5 {[%clk 0:02:59]} 4. d4 {[%clk 0:03:02]}  cxd4 {[%clk 0:02:59]} 5. Nf3 {[%clk 0:03:02]}  Nc6 {[%clk 0:03:00]} 6. cxd4 {[%clk 0:03:02]}  d6 {[%clk 0:03:00]} 7. Bc4 {[%clk 0:03:02]}  Nb6 {[%clk 0:03:00]} 8. Bb5 {[%clk 0:03:03]}  d5 {[%clk 0:02:57]} 9. Nc3 {[%clk 0:03:02]}  Bg4 {[%clk 0:02:56]} 10. h3 {[%clk 0:03:00]}  Bxf3 {[%clk 0:02:57]} 11. Qxf3 {[%clk 0:03:01]}  e6 {[%clk 0:02:54]} 12. O-O {[%clk 0:03:00]}  a6 {[%clk 0:02:53]} 13. Bxc6+ {[%clk 0:03:00]}  bxc6 {[%clk 0:02:54]} 14. Qg3 {[%clk 0:02:59]}  Qc7 {[%clk 0:02:44]} 15. b3 {[%clk 0:02:54]}  Nd7 {[%clk 0:02:44]} 16. Na4 {[%clk 0:02:53]}  c5 {[%clk 0:02:42]} 17. Be3 {[%clk 0:02:50]}  c4 {[%clk 0:02:30]} 18. Rac1 {[%clk 0:02:43]}  Qc6 {[%clk 0:02:23]} 19. f4 {[%clk 0:02:37]}  Rc8 {[%clk 0:02:18]} 20. f5 {[%clk 0:02:34]}  exf5 {[%clk 0:02:14]} 21. Rxf5 {[%clk 0:02:29]}  Qe6 {[%clk 0:02:14]} 22. Rcf1 {[%clk 0:02:28]}  cxb3 {[%clk 0:02:07]} 23. axb3 {[%clk 0:02:29]}  f6 {[%clk 0:01:52]} 24. exf6 {[%clk 0:02:15]}  gxf6 {[%clk 0:01:51]} 25. Qf3 {[%clk 0:02:00]}  Bd6 {[%clk 0:01:37]} 26. Rxd5 {[%clk 0:01:36]}  Rg8 {[%clk 0:01:35]} 27. Nc5 {[%clk 0:01:29]}  Bxc5 {[%clk 0:01:29]} 28. dxc5 {[%clk 0:01:30]}  Ne5 {[%clk 0:01:30]} 29. Qe4 {[%clk 0:01:23]}  Ke7 {[%clk 0:01:23]} 30. Rd6 {[%clk 0:01:16]}  Qxh3 {[%clk 0:01:19]} 31. Rdxf6 {[%clk 0:01:14]}  Rxg2+ {[%clk 0:00:36]} 32. Qxg2 {[%clk 0:01:12]}  Qxe3+ {[%clk 0:00:35]} 33. Kh1 {[%clk 0:01:04]}  Rxc5 {[%clk 0:00:33]} 34. Qg7+ {[%clk 0:01:04]}  Kd8 {[%clk 0:00:30]} 35. Rf8# {[%clk 0:01:03]} 1-0


[Site "https://www.chess.com"]

[Event "Titled Tuesday Blitz November 01 Early 2022"]
[White "Zacurdajev, Dmitry"]
[Black "Chernov, Mikhail"]
[WhiteFideId "4196309"]
[BlackFideId "24143170"]
[WhiteElo "2179"]
[BlackElo "2113"]
[Result "1-0"]
[Round "10"]
[TimeControl "180+1"]
[Date "2022.11.02"]
[WhiteClock "0:01:20"]
[BlackClock "0:00:52"]

1. d4 {[%clk 0:03:00]}  d5 {[%clk 0:02:56]} 2. c4 {[%clk 0:03:00]}  Nc6 {[%clk 0:02:55]} 3. Nf3 {[%clk 0:02:59]}  Bg4 {[%clk 0:02:54]} 4. e3 {[%clk 0:02:58]}  e6 {[%clk 0:02:54]} 5. Nc3 {[%clk 0:02:57]}  Bb4 {[%clk 0:02:53]} 6. cxd5 {[%clk 0:02:55]}  exd5 {[%clk 0:02:53]} 7. Be2 {[%clk 0:02:55]}  Nf6 {[%clk 0:02:53]} 8. O-O {[%clk 0:02:55]}  Bxc3 {[%clk 0:02:53]} 9. bxc3 {[%clk 0:02:54]}  O-O {[%clk 0:02:53]} 10. h3 {[%clk 0:02:55]}  Bh5 {[%clk 0:02:53]} 11. Rb1 {[%clk 0:02:54]}  Ne4 {[%clk 0:02:49]} 12. Qc2 {[%clk 0:02:41]}  Na5 {[%clk 0:02:42]} 13. Ba3 {[%clk 0:02:37]}  Re8 {[%clk 0:02:36]} 14. Bb4 {[%clk 0:02:37]}  c6 {[%clk 0:02:13]} 15. Ne5 {[%clk 0:02:32]}  Bxe2 {[%clk 0:02:11]} 16. Qxe2 {[%clk 0:02:33]}  f6 {[%clk 0:02:00]} 17. Bxa5 {[%clk 0:02:08]}  Qxa5 {[%clk 0:02:01]} 18. Rxb7 {[%clk 0:02:08]}  Nd6 {[%clk 0:01:37]} 19. Nxc6 {[%clk 0:01:44]}  Qxc3 {[%clk 0:00:52]} 20. Rc7 {[%clk 0:01:33]}  Kh8 {[%clk 0:00:52]} 21. Qg4 {[%clk 0:01:23]}  Rg8 {[%clk 0:00:52]} 22. Ne7 {[%clk 0:01:20]}  Qxc7 {[%clk 0:00:52]} 23. Ng6+ {[%clk 0:01:20]} 1-0


[Site "https://www.chess.com"]

[Event "Titled Tuesday Blitz November 01 Early 2022"]
[White "Zaichenko, Daria"]
[Black "Matveeva, Olga"]
[WhiteFideId "4197453"]
[BlackFideId "24107018"]
[WhiteElo "2039"]
[BlackElo "2055"]
[Result "1-0"]
[Round "10"]
[TimeControl "180+1"]
[Date "2022.11.02"]
[WhiteClock "0:00:16"]
[BlackClock "0:00:15"]

1. e4 {[%clk 0:02:57]}  c6 {[%clk 0:03:00]} 2. d4 {[%clk 0:02:55]}  d5 {[%clk 0:03:00]} 3. Nc3 {[%clk 0:02:55]}  dxe4 {[%clk 0:02:59]} 4. Nxe4 {[%clk 0:02:55]}  Nf6 {[%clk 0:03:00]} 5. Nxf6+ {[%clk 0:02:54]}  exf6 {[%clk 0:03:01]} 6. Nf3 {[%clk 0:02:54]}  Bd6 {[%clk 0:03:00]} 7. Bd3 {[%clk 0:02:54]}  O-O {[%clk 0:02:59]} 8. Be3 {[%clk 0:02:54]}  Bg4 {[%clk 0:02:56]} 9. h3 {[%clk 0:02:52]}  Bh5 {[%clk 0:02:55]} 10. c3 {[%clk 0:02:52]}  Nd7 {[%clk 0:02:54]} 11. Qc2 {[%clk 0:02:47]}  Bg6 {[%clk 0:02:53]} 12. O-O-O {[%clk 0:02:46]}  b5 {[%clk 0:02:46]} 13. h4 {[%clk 0:02:41]}  Re8 {[%clk 0:02:42]} 14. g4 {[%clk 0:02:39]}  b4 {[%clk 0:02:38]} 15. c4 {[%clk 0:02:38]}  b3 {[%clk 0:02:28]} 16. axb3 {[%clk 0:02:27]}  Qa5 {[%clk 0:02:20]} 17. c5 {[%clk 0:02:14]}  Bc7 {[%clk 0:02:02]} 18. g5 {[%clk 0:02:01]}  Rab8 {[%clk 0:01:55]} 19. h5 {[%clk 0:01:52]}  Bxd3 {[%clk 0:01:53]} 20. Qxd3 {[%clk 0:01:52]}  Qb4 {[%clk 0:01:46]} 21. Kc2 {[%clk 0:01:52]}  a5 {[%clk 0:01:39]} 22. Bd2 {[%clk 0:01:46]}  Qb5 {[%clk 0:01:29]} 23. Qf5 {[%clk 0:01:41]}  a4 {[%clk 0:01:16]} 24. b4 {[%clk 0:01:35]}  Qc4+ {[%clk 0:01:14]} 25. Bc3 {[%clk 0:01:16]}  Re6 {[%clk 0:00:59]} 26. Qd3 {[%clk 0:01:06]}  Qb3+ {[%clk 0:00:58]} 27. Kc1 {[%clk 0:01:05]}  a3 {[%clk 0:00:58]} 28. Qc2 {[%clk 0:01:01]}  axb2+ {[%clk 0:00:54]} 29. Qxb2 {[%clk 0:01:00]}  Qc4 {[%clk 0:00:54]} 30. d5 {[%clk 0:00:41]}  cxd5 {[%clk 0:00:50]} 31. Rd4 {[%clk 0:00:41]}  Qe2 {[%clk 0:00:43]} 32. Qxe2 {[%clk 0:00:41]}  Rxe2 {[%clk 0:00:44]} 33. Rxd5 {[%clk 0:00:40]}  Bf4+ {[%clk 0:00:42]} 34. Kd1 {[%clk 0:00:38]}  Rxf2 {[%clk 0:00:42]} 35. Rh3 {[%clk 0:00:24]}  Ne5 {[%clk 0:00:40]} 36. Nxe5 {[%clk 0:00:20]}  fxe5 {[%clk 0:00:39]} 37. Rhd3 {[%clk 0:00:19]}  Bxg5 {[%clk 0:00:35]} 38. c6 {[%clk 0:00:18]}  Ra8 {[%clk 0:00:33]} 39. c7 {[%clk 0:00:17]}  h6 {[%clk 0:00:19]} 40. Rd8+ {[%clk 0:00:16]}  Bxd8 {[%clk 0:00:15]} 41. Rxd8+ {[%clk 0:00:16]} 1-0


[Site "https://www.chess.com"]

[Event "Titled Tuesday Blitz November 01 Early 2022"]
[White "Zhu, Jiner"]
[Black "Narayanan, Srinath"]
[WhiteFideId "8608059"]
[BlackFideId "5018420"]
[WhiteElo "2384"]
[BlackElo "2459"]
[Result "1-0"]
[Round "10"]
[TimeControl "180+1"]
[Date "2022.11.01"]
[WhiteClock "0:00:50"]
[BlackClock "0:01:07"]

1. c4 {[%clk 0:03:00]}  e6 {[%clk 0:02:54]} 2. Nc3 {[%clk 0:02:58]}  Nf6 {[%clk 0:02:53]} 3. e4 {[%clk 0:02:56]}  d5 {[%clk 0:02:54]} 4. e5 {[%clk 0:02:55]}  d4 {[%clk 0:02:54]} 5. exf6 {[%clk 0:02:52]}  dxc3 {[%clk 0:02:54]} 6. bxc3 {[%clk 0:02:52]}  Qxf6 {[%clk 0:02:54]} 7. d4 {[%clk 0:02:52]}  h6 {[%clk 0:02:46]} 8. Nf3 {[%clk 0:02:51]}  Bd6 {[%clk 0:02:45]} 9. Bd3 {[%clk 0:02:50]}  b6 {[%clk 0:02:41]} 10. Be4 {[%clk 0:02:46]}  c6 {[%clk 0:02:42]} 11. O-O {[%clk 0:02:44]}  Bb7 {[%clk 0:02:42]} 12. Qe2 {[%clk 0:02:44]}  O-O {[%clk 0:02:43]} 13. Ne5 {[%clk 0:02:39]}  Qe7 {[%clk 0:02:42]} 14. f4 {[%clk 0:02:37]}  Rc8 {[%clk 0:02:40]} 15. Qf3 {[%clk 0:02:35]}  f5 {[%clk 0:02:35]} 16. Bd3 {[%clk 0:02:30]}  c5 {[%clk 0:02:34]} 17. Qe2 {[%clk 0:02:26]}  Nc6 {[%clk 0:02:34]} 18. Nxc6 {[%clk 0:02:15]}  Bxc6 {[%clk 0:02:35]} 19. d5 {[%clk 0:02:08]}  exd5 {[%clk 0:02:31]} 20. Qxe7 {[%clk 0:02:08]}  Bxe7 {[%clk 0:02:32]} 21. Bxf5 {[%clk 0:02:08]}  Rd8 {[%clk 0:02:30]} 22. Be6+ {[%clk 0:02:00]}  Kf8 {[%clk 0:02:30]} 23. f5 {[%clk 0:01:28]}  Bf6 {[%clk 0:02:27]} 24. Bb2 {[%clk 0:01:14]}  dxc4 {[%clk 0:02:26]} 25. Bxc4 {[%clk 0:01:15]}  Rd2 {[%clk 0:02:26]} 26. Rf2 {[%clk 0:01:15]}  Rad8 {[%clk 0:02:25]} 27. Re1 {[%clk 0:01:11]}  b5 {[%clk 0:01:28]} 28. Be6 {[%clk 0:00:58]}  Bd4 {[%clk 0:01:19]} 29. cxd4 {[%clk 0:00:54]}  Rxf2 {[%clk 0:01:11]} 30. Kxf2 {[%clk 0:00:55]}  c4 {[%clk 0:01:11]} 31. Bc3 {[%clk 0:00:54]}  Ke7 {[%clk 0:01:09]} 32. Bxc4+ {[%clk 0:00:53]}  Kd7 {[%clk 0:01:09]} 33. Be6+ {[%clk 0:00:52]}  Kd6 {[%clk 0:01:08]} 34. d5 {[%clk 0:00:50]}  Bb7 {[%clk 0:01:07]} 35. Bb4+ {[%clk 0:00:50]} 1-0


[Site "https://www.chess.com"]

[Event "Titled Tuesday Blitz November 01 Early 2022"]
[White "Adnan, Habib"]
[Black "Harriott, Tyrell"]
[WhiteFideId "11202270"]
[BlackFideId "2086484"]
[WhiteElo "2110"]
[BlackElo "2107"]
[Result "1/2-1/2"]
[Round "11"]
[TimeControl "180+1"]
[Date "2022.11.02"]
[WhiteClock "0:00:32"]
[BlackClock "0:00:58"]

1. d4 {[%clk 0:03:00]}  e6 {[%clk 0:03:00]} 2. c4 {[%clk 0:03:00]}  d5 {[%clk 0:03:01]} 3. g3 {[%clk 0:03:00]}  c6 {[%clk 0:03:01]} 4. Bg2 {[%clk 0:03:00]}  Bd6 {[%clk 0:03:01]} 5. Nf3 {[%clk 0:03:01]}  f5 {[%clk 0:03:02]} 6. O-O {[%clk 0:03:01]}  Nf6 {[%clk 0:03:02]} 7. Nc3 {[%clk 0:02:59]}  O-O {[%clk 0:03:02]} 8. Qc2 {[%clk 0:03:00]}  Ne4 {[%clk 0:03:00]} 9. Bf4 {[%clk 0:02:55]}  Bxf4 {[%clk 0:02:58]} 10. gxf4 {[%clk 0:02:55]}  Nd7 {[%clk 0:02:59]} 11. Ne5 {[%clk 0:02:52]}  Nxe5 {[%clk 0:02:58]} 12. fxe5 {[%clk 0:02:48]}  Qg5 {[%clk 0:02:51]} 13. e3 {[%clk 0:02:33]}  b6 {[%clk 0:02:42]} 14. f4 {[%clk 0:02:01]}  Qh4 {[%clk 0:02:38]} 15. Rf3 {[%clk 0:01:51]}  Ba6 {[%clk 0:02:34]} 16. Nxe4 {[%clk 0:01:49]}  fxe4 {[%clk 0:02:29]} 17. Rh3 {[%clk 0:01:48]}  Qg4 {[%clk 0:02:19]} 18. Rg3 {[%clk 0:01:46]}  Qh5 {[%clk 0:02:19]} 19. b3 {[%clk 0:01:40]}  Rf5 {[%clk 0:02:16]} 20. Bh3 {[%clk 0:01:38]}  dxc4 {[%clk 0:02:04]} 21. Bxf5 {[%clk 0:01:35]}  Qxf5 {[%clk 0:02:01]} 22. bxc4 {[%clk 0:01:34]}  Rd8 {[%clk 0:01:55]} 23. Kh1 {[%clk 0:01:31]}  c5 {[%clk 0:01:53]} 24. Rag1 {[%clk 0:01:30]}  g6 {[%clk 0:01:53]} 25. dxc5 {[%clk 0:01:21]}  bxc5 {[%clk 0:01:44]} 26. Qa4 {[%clk 0:01:14]}  Bb7 {[%clk 0:01:37]} 27. Rd1 {[%clk 0:01:13]}  Qf8 {[%clk 0:01:31]} 28. Rgg1 {[%clk 0:01:07]}  Ra8 {[%clk 0:01:25]} 29. Qd7 {[%clk 0:01:05]}  Ba6 {[%clk 0:01:19]} 30. Qxe6+ {[%clk 0:01:05]}  Kg7 {[%clk 0:01:18]} 31. Qxa6 {[%clk 0:01:05]}  Qf5 {[%clk 0:01:14]} 32. Qb7+ {[%clk 0:01:02]}  Kh6 {[%clk 0:01:13]} 33. Rd7 {[%clk 0:01:01]}  Rh8 {[%clk 0:01:11]} 34. Rd2 {[%clk 0:00:54]}  Qh3 {[%clk 0:01:09]} 35. Qb3 {[%clk 0:00:53]}  Qf3+ {[%clk 0:01:07]} 36. Rdg2 {[%clk 0:00:54]}  Rd8 {[%clk 0:01:06]} 37. e6 {[%clk 0:00:53]}  Rd3 {[%clk 0:01:02]} 38. e7 {[%clk 0:00:52]}  Rd2 {[%clk 0:01:01]} 39. e8=Q {[%clk 0:00:51]}  Rxg2 {[%clk 0:01:01]} 40. Qf8+ {[%clk 0:00:51]}  Kh5 {[%clk 0:00:59]} 41. Rxg2 {[%clk 0:00:32]}  Qf1+ {[%clk 0:00:58]} 42. Rg1 {[%clk 0:00:31]}  Qf3+ {[%clk 0:00:58]} 43. Rg2 {[%clk 0:00:31]}  Qf1+ {[%clk 0:00:58]} 44. Rg1 {[%clk 0:00:31]}  Qf3+ {[%clk 0:00:58]} 45. Rg2 {[%clk 0:00:32]} 1/2-1/2


[Site "https://www.chess.com"]